[Event "VI Sunway Sitges Open 2019"]
[Site "Sitges"]
[Date "2019.12.13"]
[Round "1.52"]
[White "Varsha, Ramesh"]
[Black "Rakshitta, Ravi"]
[Result "0-1"]
[ECO "A45"]
[WhiteElo "1669"]
[BlackElo "2260"]
[Annotator "NA"]
[PlyCount "110"]
[EventDate "2019.12.13"]
[EventType "swiss"]
[EventCountry "ESP"]
[SourceTitle "playchess.com"]
[Source "ChessBase"]
[SourceQuality "1"]
[TimeControl "40/5400+30:1800+30"]

1. d4 {[%emt 0:00:00]} Nf6 {[%emt 0:00:02]} 2. Bf4 {[%emt 0:00:00]} g6 {[%emt 0:00:19]} 3. Nc3 {[%emt 0:00:00]} d5 {[%emt 0:00:05]} 4. e3 {[%emt 0:00:00]} Bg7 {[%emt 0:00:04]} 5. h4 {[%emt 0:00:04]} h5 {[%emt 0:04:36]} 6. Nf3 {[%emt 0:00:11]} O-O {[%emt 0:00:52]} 7. Ne5 {[%emt 0:01:03]} c5 {[%emt 0:00:59]} 8. Qd2 {[%emt 0:04:55]} Nc6 {[%emt 0:01:01]} 9. Be2 {[%emt 0:10:14]} cxd4 {[%emt 0:19:43]} 10. exd4 {[%emt 0:01:02]} Ne4 {[%emt 0:07:58]} 11. Nxc6 {[%emt 0:04:51]} bxc6 {[%emt 0:00:22]} 12. Nxe4 {[%emt 0:00:31]} dxe4 {[%emt 0:00:08]} 13. c3 {[%emt 0:00:44]} Qa5 {[%emt 0:05:02]} 14. Qe3 {[%emt 0:03:22]} Bf5 {[%emt 0:03:02]} 15. O-O {[%emt 0:11:42]} Qb6 {[%emt 0:12:53]} 16. b3 {[%emt 0:05:10]} Rac8 {[%emt 0:01:31]} 17. Bh6 {[%emt 0:05:07]} Rfd8 {[%emt 0:10:25]} 18. Bxg7 {[%emt 0:05:31]} Kxg7 {[%emt 0:00:02]} 19. Rfd1 {[%emt 0:03:41]} Qc7 {[%emt 0:01:03]} 20. Ba6 {[%emt 0:02:18]} Rb8 {[%emt 0:02:38]} 21. Bc4 {[%emt 0:00:23]} e6 {[%emt 0:06:14]} 22. Be2 {[%emt 0:03:21]} Rd7 {[%emt 0:04:21]} 23. Rac1 {[%emt 0:06:41]} Rbd8 {[%emt 0:00:15]} 24. Qg5 {[%emt 0:03:18]} e5 {[%emt 0:04:26]} 25. Qg3 {[%emt 0:02:44]} exd4 {[%emt 0:04:25]} 26. Qxc7 {[%emt 0:00:09]} Rxc7 {[%emt 0:00:01]} 27. Rxd4 {[%emt 0:00:26]} Re8 {[%emt 0:07:02]} 28. c4 {[%emt 0:07:06]} c5 {[%emt 0:00:24]} 29. Rd6 {[%emt 0:01:59]} Re6 {[%emt 0:00:09]} 30. Rcd1 {[%emt 0:03:00]} Kf6 {[%emt 0:00:11]} 31. Kf1 {[%emt 0:06:12]} Rxd6 {[%emt 0:00:17]} 32. Rxd6+ {[%emt 0:00:06]} Be6 {[%emt 0:00:07]} 33. Rd2 {[%emt 0:02:28]} Ke5 {[%emt 0:00:19]} 34. g3 {[%emt 0:01:23]} Rd7 {[%emt 0:02:38]} 35. Ke1 {[%emt 0:02:20]} Rxd2 {[%emt 0:00:41]} 36. Kxd2 {[%emt 0:00:02]} Kd4 {[%emt 0:00:06]} 37. Bd1 {[%emt 0:01:56]} f6 {[%emt 0:01:39]} 38. Be2 {[%emt 0:00:33]} Bf7 {[%emt 0:00:12]} 39. Bd1 {[%emt 0:03:00]} g5 {[%emt 0:01:13]} 40. hxg5 {[%emt 0:00:00]} fxg5 {[%emt 0:00:00]} 41. Be2 {[%emt 0:02:16]} Bg6 {[%emt 0:00:37]} 42. Bd1 {[%emt 0:04:16]} h4 {[%emt 0:01:54]} 43. gxh4 {[%emt 0:01:37]} gxh4 {[%emt 0:00:02]} 44. Bg4 {[%emt 0:00:28]} Ke5 {[%emt 0:01:10]} 45. Ke3 {[%emt 0:02:46]} Bf5 {[%emt 0:00:08]} 46. f4+ {[%emt 0:00:46]} exf3 {[%emt 0:00:29]} 47. Bxf3 {[%emt 0:00:20]} h3 {[%emt 0:00:12]} 48. Bb7 {[%emt 0:10:00]} a5 {[%emt 0:02:15]} 49. a3 {[%emt 0:01:14]} Bc2 {[%emt 0:00:54]} 50. b4 {[%emt 0:01:17]} cxb4 {[%emt 0:00:48]} 51. axb4 {[%emt 0:01:07]} axb4 {[%emt 0:00:11]} 52. c5 {[%emt 0:01:23]} b3 {[%emt 0:00:07]} 53. c6 {[%emt 0:00:46]} Kd6 {[%emt 0:00:12]} 54. c7 {[%emt 0:00:39]} Kxc7 {[%emt 0:00:04]} 55. Bf3 {[%emt 0:00:14]} b2 {[%emt 0:00:06]} 0-1

[Event "VI Sunway Sitges Open 2019"]
[Site "Sitges"]
[Date "2019.12.13"]
[Round "1.53"]
[White "Kochavi, Ori"]
[Black "Isaksson, Philip"]
[Result "1-0"]
[ECO "C44"]
[WhiteElo "2259"]
[BlackElo "1638"]
[Annotator "NA"]
[PlyCount "71"]
[EventDate "2019.12.13"]
[EventType "swiss"]
[EventCountry "ESP"]
[SourceTitle "playchess.com"]
[Source "ChessBase"]
[SourceQuality "1"]
[TimeControl "40/5400+30:1800+30"]

1. e4 {[%emt 0:16:45]} e5 {[%emt 0:00:03]} 2. Nf3 {[%emt 0:00:12]} Nc6 {[%emt 0:00:03]} 3. Bc4 {[%emt 0:00:03]} Bc5 {[%emt 0:00:06]} 4. d4 {[%emt 0:00:14]} exd4 {[%emt 0:01:30]} 5. c3 {[%emt 0:01:39]} d3 {[%emt 2:10:53]} 6. b4 Bb6 7. Qxd3 Nf6 8. O-O d6 9. a4 a6 10. h3 h6 11. Ra2 O-O 12. Re2 Re8 13. Na3 Ne5 14. Nxe5 dxe5 15. Qg3 Nh5 16. Qg6 Qf6 17. Qxh5 Be6 18. a5 Ba7 19. Be3 Bxc4 20. Nxc4 Qe6 21. Nd2 Bxe3 22. Rxe3 Rad8 23. Nf3 Rd7 24. Nh4 Red8 25. Rg3 Rd3 26. Nf5 Rxg3 27. fxg3 Rd3 28. Qg4 Qf6 29. Ne3 Qd6 30. Nd5 Rxd5 31. exd5 Qxd5 32. Qc8+ Kh7 33. Qxc7 e4 34. Qxf7 Qd3 35. Qf5+ Kh8 36. Qg6 1-0

[Event "VI Sunway Sitges Open 2019"]
[Site "Sitges"]
[Date "2019.12.13"]
[Round "1.54"]
[White "Jimenez Molina, Victor"]
[Black "Menac Comas, Joan Ramon"]
[Result "0-1"]
[ECO "A09"]
[WhiteElo "1665"]
[BlackElo "1997"]
[Annotator "NA"]
[PlyCount "57"]
[EventDate "2019.12.13"]
[EventType "swiss"]
[EventCountry "ESP"]
[SourceTitle "playchess.com"]
[Source "ChessBase"]
[SourceQuality "1"]
[TimeControl "40/5400+30:1800+30"]

1. Nf3 {[%emt 0:00:00]} d5 {[%emt 0:00:27]} 2. c4 {[%emt 0:01:01]} d4 {[%emt 0:01:08]} 3. g3 {[%emt 0:01:33]} Nc6 {[%emt 0:00:17]} 4. Bg2 {[%emt 0:00:00]} e5 5. d3 {[%emt 0:06:29]} Nf6 {[%emt 0:10:11]} 6. O-O {[%emt 0:00:00]} a5 7. e3 {[%emt 0:00:00]} Be7 {[%emt 0:03:41]} 8. exd4 exd4 9. Re1 {[%emt 0:00:45]} O-O 10. Na3 {[%emt 0:08:45]} Bg4 {[%emt 0:13:04]} 11. h3 {[%emt 0:08:54]} Bf5 12. Ne5 {[%emt 0:20:10]} Nxe5 {[%emt 0:18:05]} 13. Rxe5 {[%emt 0:03:32]} Bc8 {[%emt 0:16:20]} 14. Bd2 {[%emt 0:09:51]} c6 {[%emt 0:09:01]} 15. Qa4 {[%emt 0:07:24]} Nd7 {[%emt 0:12:15]} 16. Re2 {[%emt 0:00:41]} Nc5 {[%emt 0:00:35]} 17. Qc2 {[%emt 0:00:43]} Bf5 {[%emt 0:04:01]} 18. Re5 {[%emt 0:02:07]} Bxd3 {[%emt 0:00:35]} 19. Qd1 {[%emt 0:03:13]} Bg6 20. Nc2 {[%emt 0:07:13]} Nd3 {[%emt 0:03:30]} 21. Rxe7 {[%emt 0:00:04]} Qxe7 {[%emt 0:00:59]} 22. Nxd4 {[%emt 0:01:42]} Rad8 23. Bc3 {[%emt 0:03:09]} Qc5 {[%emt 0:00:00]} 24. Qg4 {[%emt 0:02:01]} Rfe8 25. h4 {[%emt 0:10:53]} f5 {[%emt 0:04:55]} 26. Bd5+ {[%emt 0:00:00]} cxd5 {[%emt 0:00:00]} 27. Nxf5 Qxf2+ {[%emt 0:00:00]} 28. Kh1 Qxf5 {[%emt 0:02:09]} 29. Qd1 {[%emt 0:00:05]} 0-1

[Event "VI Sunway Sitges Open 2019"]
[Site "Sitges"]
[Date "2019.12.14"]
[Round "2.16"]
[White "Gareyev, Timur"]
[Black "Eggleston, David J"]
[Result "1-0"]
[ECO "A14"]
[WhiteElo "2598"]
[BlackElo "2404"]
[Annotator "ChessBase"]
[PlyCount "139"]
[EventDate "2019.12.13"]
[EventType "swiss"]
[EventCountry "ESP"]
[SourceTitle "playchess.com"]
[Source "ChessBase"]
[SourceQuality "1"]
[TimeControl "40/5400+30:1800+30"]

1. Nf3 {[%emt 0:06:03]} Nf6 {[%emt 0:00:00]} 2. c4 {[%emt 0:00:13]} e6 {[%emt 0:00:06]} 3. g3 {[%emt 0:00:34]} d5 {[%emt 0:00:33]} 4. Bg2 {[%emt 0:00:07]} Be7 {[%emt 0:00:08]} 5. O-O {[%emt 0:00:08]} O-O {[%emt 0:00:06]} 6. b3 {[%emt 0:00:05]} c5 {[%emt 0:01:20]} 7. e3 {[%emt 0:00:51]} Nc6 {[%emt 0:01:41]} 8. Bb2 {[%emt 0:00:05]} Bd7 {[%emt 0:02:27]} 9. Qe2 {[%emt 0:04:02]} Rc8 {[%emt 0:00:36]} 10. d3 {[%emt 0:03:30]} Qc7 {[%emt 0:02:43]} 11. Nbd2 {[%emt 0:03:01]} Rfe8 {[%emt 0:04:29]} 12. Rac1 {[%emt 0:00:40]} b6 {[%emt 0:11:40]} 13. d4 {[%emt 0:02:36]} cxd4 {[%emt 0:06:21]} 14. exd4 {[%emt 0:01:21]} Red8 {[%emt 0:06:52]} 15. Ne5 {[%emt 0:01:24]} Be8 {[%emt 0:02:55]} 16. Ndf3 {[%emt 0:03:18]} Qb8 {[%emt 0:02:20]} 17. Bh3 {[%emt 0:01:32]} dxc4 {[%emt 0:05:21]} 18. bxc4 {[%emt 0:04:01]} Nxe5 {[%emt 0:01:11]} 19. Nxe5 {[%emt 0:00:16]} Rc7 {[%emt 0:03:40]} 20. Rfe1 {[%emt 0:00:05]} b5 {[%emt 0:04:18]} 21. c5 {[%emt 0:00:52]} Nd5 {[%emt 0:00:41]} 22. a3 {[%emt 0:04:04]} a5 {[%emt 0:03:08]} 23. Bg2 {[%emt 0:01:46]} Bf6 {[%emt 0:08:33]} 24. Ng4 {[%emt 0:00:02]} Be7 {[%emt 0:04:49]} 25. h4 {[%emt 0:00:05]} b4 {[%emt 0:03:58]} 26. axb4 {[%emt 0:00:28]} axb4 {[%emt 0:00:14]} 27. Bxd5 {[%emt 0:04:09]} Rxd5 {[%emt 0:07:09]} 28. Ne3 {[%emt 0:00:05]} Bc6 {[%emt 0:00:44]} 29. Nxd5 {[%emt 0:00:44]} Bxd5 {[%emt 0:00:05]} 30. Ra1 {[%emt 0:00:04]} b3 {[%emt 0:04:05]} 31. Ra6 {[%emt 0:00:47]} Qd8 {[%emt 0:06:10]} 32. Rb6 {[%emt 0:00:02]} h6 {[%emt 0:02:10]} 33. Qb5 {[%emt 0:00:39]} Rc8 {[%emt 0:01:05]} 34. Bc1 {[%emt 0:01:29]} Bf6 {[%emt 0:02:13]} 35. Rd6 {[%emt 0:00:43]} Qc7 {[%emt 0:00:42]} 36. Bf4 {[%emt 0:00:01]} Qa7 {[%emt 0:02:36]} 37. Ra6 {[%emt 0:09:00]} Qe7 {[%emt 0:00:02]} 38. Bd6 {[%emt 0:00:08]} Qd8 {[%emt 0:00:50]} 39. Be5 {[%emt 0:00:03]} Qe7 {[%emt 0:00:51]} 40. Rd6 {[%emt 0:00:00]} Bxe5 {[%emt 0:00:00]} 41. Rxd5 {[%emt 0:19:46]} exd5 {[%emt 0:02:01]} 42. Rxe5 {[%emt 0:02:13]} Qa7 {[%emt 0:00:52]} 43. Qxb3 {[%emt 0:00:27]} Qa1+ {[%emt 0:00:43]} 44. Kg2 {[%emt 0:02:23]} Qxd4 {[%emt 0:00:14]} 45. Rxd5 {[%emt 0:02:58]} Qe4+ {[%emt 0:01:44]} 46. Qf3 {[%emt 0:00:03]} Qe7 {[%emt 0:01:07]} 47. Qf5 {[%emt 0:01:19]} Qb7 {[%emt 0:02:31]} 48. Qe4 {[%emt 0:00:35]} Qa8 {[%emt 0:01:02]} 49. Qf3 {[%emt 0:01:36]} Qa4 {[%emt 0:04:30]} 50. h5 {[%emt 0:00:43]} Qa8 {[%emt 0:04:09]} 51. Re5 {[%emt 0:02:39]} Qa6 {[%emt 0:02:00]} 52. Qd5 {[%emt 0:01:42]} Qf6 {[%emt 0:00:37]} 53. Qd7 {[%emt 0:26:19]} Qxe5 {[%emt 0:00:42]} 54. Qxc8+ {[%emt 0:01:29]} Kh7 {[%emt 0:00:01]} 55. Qc6 {[%emt 0:00:48]} Qd4 {[%emt 0:03:51]} 56. Qd6 {[%emt 0:03:21]} Qe4+ {[%emt 0:00:24]} 57. Kh2 {[%emt 0:00:13]} Qe2 {[%emt 0:02:33]} 58. Qd4 {[%emt 0:00:43]} Qxh5+ {[%emt 0:05:59]} 59. Kg2 {[%emt 0:00:04]} Qf5 {[%emt 0:01:12]} 60. Qc4 {[%emt 0:04:19]} Kg8 {[%emt 0:03:44]} 61. c6 {[%emt 0:00:29]} Qc8 {[%emt 0:01:03]} 62. Qb5 {[%emt 0:00:34]} Qe6 {[%emt 0:00:34]} 63. c7 {[%emt 0:05:11]} Qe4+ {[%emt 0:00:06]} 64. Kh2 {[%emt 0:00:29]} Qc2 {[%emt 0:00:15]} 65. Qe8+ {[%emt 0:00:08]} Kh7 {[%emt 0:00:04]} 66. Qxf7 {[%emt 0:00:06]} Qc5 {[%emt 0:00:39]} 67. Kh3 {[%emt 0:00:24]} h5 {[%emt 0:00:51]} 68. Kh4 {[%emt 0:02:39]} Qd4+ {[%emt 0:00:49]} 69. f4 {[%emt 0:00:16]} Qc4 {[%emt 0:00:49]} 70. Qxc4 {[%emt 0:01:09]} 1-0

[Event "VI Sunway Sitges Open 2019"]
[Site "Sitges"]
[Date "2019.12.14"]
[Round "2.18"]
[White "Krishna Teja, N."]
[Black "Praggnanandhaa R"]
[Result "0-1"]
[ECO "D37"]
[WhiteElo "2383"]
[BlackElo "2586"]
[Annotator "ChessBase"]
[PlyCount "108"]
[EventDate "2019.12.13"]
[EventType "swiss"]
[EventCountry "ESP"]
[SourceTitle "playchess.com"]
[Source "ChessBase"]
[SourceQuality "1"]
[TimeControl "40/5400+30:1800+30"]

1. Nf3 {[%emt 0:01:42]} Nf6 {[%emt 0:00:00]} 2. c4 {[%emt 0:01:27]} e6 {[%emt 0:00:15]} 3. d4 {[%emt 0:03:20]} d5 {[%emt 0:00:29]} 4. Nc3 {[%emt 0:00:55]} a6 {[%emt 0:00:39]} 5. cxd5 {[%emt 0:01:30]} exd5 {[%emt 0:00:08]} 6. Bg5 {[%emt 0:00:10]} Be6 {[%emt 0:01:12]} 7. e3 {[%emt 0:00:28]} Nbd7 {[%emt 0:00:43]} 8. Bd3 {[%emt 0:00:28]} c6 {[%emt 0:01:49]} 9. O-O {[%emt 0:00:38]} Bd6 {[%emt 0:01:38]} 10. Qc2 {[%emt 0:05:50]} Qc7 {[%emt 0:06:09]} 11. h3 {[%emt 0:15:24]} h6 {[%emt 0:08:30]} 12. Bxf6 {[%emt 0:01:05]} Nxf6 {[%emt 0:00:22]} 13. Na4 {[%emt 0:00:45]} O-O {[%emt 0:05:04]} 14. Nc5 {[%emt 0:00:40]} Bc8 {[%emt 0:03:18]} 15. Rfc1 {[%emt 0:04:11]} Re8 {[%emt 0:12:29]} 16. Nd2 {[%emt 0:05:42]} Qe7 {[%emt 0:05:18]} 17. Qd1 {[%emt 0:05:06]} Nd7 {[%emt 0:04:47]} 18. Ndb3 {[%emt 0:08:43]} Qg5 {[%emt 0:04:12]} 19. Qf3 {[%emt 0:01:10]} Nf6 {[%emt 0:04:28]} 20. Nd2 {[%emt 0:07:27]} h5 {[%emt 0:05:32]} 21. Nf1 {[%emt 0:02:45]} Bc7 {[%emt 0:06:55]} 22. b4 {[%emt 0:02:51]} b6 {[%emt 0:02:20]} 23. Nb3 {[%emt 0:01:53]} Bd7 {[%emt 0:00:50]} 24. a4 {[%emt 0:08:01]} Ne4 {[%emt 0:07:40]} 25. b5 {[%emt 0:03:48]} Qh4 {[%emt 0:05:24]} 26. bxc6 {[%emt 0:04:32]} Bc8 {[%emt 0:04:01]} 27. Nbd2 {[%emt 0:03:58]} Ng5 {[%emt 0:06:49]} 28. Qxd5 {[%emt 0:00:08]} Nxh3+ {[%emt 0:01:49]} 29. gxh3 {[%emt 0:00:06]} Bxh3 {[%emt 0:00:05]} 30. Be2 {[%emt 0:03:48]} Re6 {[%emt 0:00:46]} 31. Bxh5 {[%emt 0:00:13]} Rd8 {[%emt 0:00:52]} 32. Qf3 {[%emt 0:06:00]} Rf6 {[%emt 0:00:11]} 33. Ng3 {[%emt 0:00:24]} Rxf3 {[%emt 0:00:35]} 34. Nxf3 {[%emt 0:00:02]} Qf6 {[%emt 0:00:11]} 35. Ne5 {[%emt 0:00:28]} g6 {[%emt 0:01:14]} 36. Be2 {[%emt 0:00:23]} Bc8 {[%emt 0:00:40]} 37. Rab1 {[%emt 0:01:09]} Kg7 {[%emt 0:00:21]} 38. Kg2 {[%emt 0:00:44]} Rh8 {[%emt 0:00:36]} 39. Rh1 {[%emt 0:00:27]} Rxh1 {[%emt 0:00:22]} 40. Nxh1 {[%emt 0:00:00]} Bxe5 {[%emt 0:00:00]} 41. dxe5 {[%emt 0:00:36]} Qxc6+ {[%emt 0:01:36]} 42. Bf3 {[%emt 0:00:58]} Qxa4 {[%emt 0:01:27]} 43. Rxb6 {[%emt 0:00:08]} Qa5 {[%emt 0:00:23]} 44. Rb8 {[%emt 0:00:49]} Qc7 {[%emt 0:00:18]} 45. Rb3 {[%emt 0:02:31]} Qxe5 {[%emt 0:01:08]} 46. Ng3 {[%emt 0:00:08]} a5 {[%emt 0:00:52]} 47. Bc6 {[%emt 0:04:35]} Be6 {[%emt 0:02:07]} 48. Rd3 {[%emt 0:00:48]} Qc5 {[%emt 0:01:57]} 49. Ba4 {[%emt 0:01:23]} Bd5+ {[%emt 0:01:19]} 50. Kg1 {[%emt 0:01:45]} Bc6 {[%emt 0:04:02]} 51. Rd4 {[%emt 0:03:02]} Bxa4 {[%emt 0:03:29]} 52. Rxa4 {[%emt 0:00:03]} Qb5 {[%emt 0:00:09]} 53. Ra1 {[%emt 0:00:08]} a4 {[%emt 0:00:14]} 54. Ne4 {[%emt 0:01:45]} Qb4 {[%emt 0:00:48]} 0-1

[Event "VI Sunway Sitges Open 2019"]
[Site "Sitges"]
[Date "2019.12.14"]
[Round "2.19"]
[White "Santos Latasa, Jaime"]
[Black "Milliet, Sophie"]
[Result "1/2-1/2"]
[ECO "E53"]
[WhiteElo "2585"]
[BlackElo "2398"]
[Annotator "ChessBase"]
[PlyCount "61"]
[EventDate "2019.12.13"]
[EventType "swiss"]
[EventCountry "ESP"]
[SourceTitle "playchess.com"]
[Source "ChessBase"]
[SourceQuality "1"]
[TimeControl "40/5400+30:1800+30"]

1. d4 {[%emt 0:00:00]} Nf6 {[%emt 0:07:24]} 2. c4 {[%emt 0:00:00]} e6 {[%emt 0:00:04]} 3. Nc3 {[%emt 0:00:00]} Bb4 {[%emt 0:00:04]} 4. e3 {[%emt 0:00:05]} O-O {[%emt 0:00:16]} 5. Bd3 {[%emt 0:00:07]} d5 {[%emt 0:00:07]} 6. a3 {[%emt 0:00:33]} Bxc3+ {[%emt 0:00:15]} 7. bxc3 {[%emt 0:00:07]} dxc4 {[%emt 0:00:03]} 8. Bxc4 {[%emt 0:00:07]} c5 {[%emt 0:00:10]} 9. Nf3 {[%emt 0:00:07]} Qc7 {[%emt 0:00:46]} 10. Ba2 {[%emt 0:00:08]} b5 {[%emt 0:00:32]} 11. O-O {[%emt 0:00:16]} Bb7 {[%emt 0:00:10]} 12. Qe2 {[%emt 0:00:19]} Rc8 {[%emt 0:00:33]} 13. Bb1 {[%emt 0:03:27]} Ne4 {[%emt 0:10:09]} 14. Bb2 {[%emt 0:04:14]} Nd7 {[%emt 0:08:54]} 15. Qxb5 {[%emt 0:08:28]} Rab8 {[%emt 0:01:55]} 16. Qe2 {[%emt 0:00:25]} cxd4 {[%emt 0:14:19]} 17. cxd4 {[%emt 0:02:06]} Qb6 {[%emt 0:01:46]} 18. Bd3 {[%emt 0:01:53]} Bd5 {[%emt 0:03:34]} 19. Rac1 {[%emt 0:05:16]} Rxc1 {[%emt 0:26:56]} 20. Bxc1 {[%emt 0:00:53]} Qa5 {[%emt 0:01:38]} 21. Qc2 {[%emt 0:02:49]} f5 {[%emt 0:01:18]} 22. Ne1 {[%emt 0:03:29]} Nb6 {[%emt 0:03:44]} 23. f3 {[%emt 0:01:49]} Rc8 {[%emt 0:00:23]} 24. Qd1 {[%emt 0:00:07]} Nc3 {[%emt 0:01:35]} 25. Qd2 {[%emt 0:00:49]} Qa4 {[%emt 0:03:28]} 26. Kh1 {[%emt 0:06:29]} Qb3 {[%emt 0:02:06]} 27. Bb2 {[%emt 0:02:02]} Nd1 {[%emt 0:03:58]} 28. Bc1 {[%emt 0:00:12]} Nc3 {[%emt 0:05:30]} 29. Bb2 {[%emt 0:04:53]} Nd1 {[%emt 0:00:04]} 30. Bc1 {[%emt 0:00:08]} Nc3 {[%emt 0:00:12]} 31. Bb2 {[%emt 0:00:07]} 1/2-1/2

[Event "VI Sunway Sitges Open 2019"]
[Site "Sitges"]
[Date "2019.12.14"]
[Round "2.20"]
[White "Lopez Mulet, Inigo"]
[Black "Puranik, Abhimanyu"]
[Result "1/2-1/2"]
[ECO "C56"]
[WhiteElo "2382"]
[BlackElo "2580"]
[Annotator "ChessBase"]
[PlyCount "88"]
[EventDate "2019.12.13"]
[EventType "swiss"]
[EventCountry "ESP"]
[SourceTitle "playchess.com"]
[Source "ChessBase"]
[SourceQuality "1"]
[TimeControl "40/5400+30:1800+30"]

1. e4 {[%emt 2:01:53]} e5 {[%emt 0:00:07]} 2. Nf3 {[%emt 0:00:05]} Nc6 {[%emt 0:00:05]} 3. d4 {[%emt 0:00:06]} exd4 {[%emt 0:00:07]} 4. Bc4 {[%emt 0:00:06]} Nf6 {[%emt 0:00:46]} 5. O-O {[%emt 0:00:10]} Nxe4 {[%emt 0:00:20]} 6. Re1 {[%emt 0:00:05]} d5 {[%emt 0:00:04]} 7. Bxd5 {[%emt 0:00:06]} Qxd5 {[%emt 0:00:06]} 8. Nc3 {[%emt 0:00:05]} Qd7 {[%emt 0:01:05]} 9. Nxe4 {[%emt 0:00:22]} Be7 {[%emt 0:00:04]} 10. Bg5 {[%emt 0:00:14]} O-O {[%emt 0:00:25]} 11. Bxe7 {[%emt 0:00:08]} Qxe7 {[%emt 0:00:05]} 12. Nxd4 {[%emt 0:00:06]} Bd7 {[%emt 0:00:07]} 13. Nc3 {[%emt 0:04:05]} Qb4 {[%emt 0:16:39]} 14. Ndb5 {[%emt 0:01:04]} Rad8 {[%emt 0:01:30]} 15. Nxc7 {[%emt 0:00:51]} Qxb2 {[%emt 0:01:38]} 16. N3d5 {[%emt 0:00:07]} Be6 {[%emt 0:21:50]} 17. c4 {[%emt 0:00:16]} Bxd5 {[%emt 0:02:22]} 18. Nxd5 {[%emt 0:00:06]} Rfe8 {[%emt 0:02:52]} 19. Qb3 {[%emt 0:00:54]} Rxe1+ {[%emt 0:03:57]} 20. Rxe1 {[%emt 0:00:07]} Qxb3 {[%emt 0:00:02]} 21. axb3 {[%emt 0:00:06]} Na5 {[%emt 0:00:38]} 22. Re7 {[%emt 0:08:01]} Kf8 {[%emt 0:01:48]} 23. Rc7 {[%emt 0:00:10]} Nxb3 {[%emt 0:22:55]} 24. Rxb7 {[%emt 0:00:13]} Nd2 {[%emt 0:01:01]} 25. Rxa7 {[%emt 0:01:23]} Nxc4 {[%emt 0:00:04]} 26. Ne3 {[%emt 0:00:05]} Nxe3 {[%emt 0:00:18]} 27. fxe3 {[%emt 0:00:04]} Rd2 {[%emt 0:00:03]} 28. Kf1 {[%emt 0:00:15]} g6 {[%emt 0:00:57]} 29. Ra1 {[%emt 0:03:29]} Kg7 {[%emt 0:01:52]} 30. Re1 {[%emt 0:00:06]} Kf6 {[%emt 0:00:57]} 31. Re2 {[%emt 0:00:08]} Rxe2 {[%emt 0:00:13]} 32. Kxe2 {[%emt 0:00:04]} Ke5 {[%emt 0:00:29]} 33. Kf3 {[%emt 0:00:06]} f5 {[%emt 0:00:27]} 34. Kf2 {[%emt 0:03:16]} Ke4 {[%emt 0:00:09]} 35. Ke2 {[%emt 0:00:04]} g5 {[%emt 0:01:43]} 36. Kd2 {[%emt 0:00:08]} h6 {[%emt 0:05:40]} 37. Ke2 {[%emt 0:00:37]} h5 {[%emt 0:00:27]} 38. Kd2 {[%emt 0:00:29]} Ke5 {[%emt 0:01:54]} 39. Ke2 {[%emt 0:00:58]} h4 {[%emt 0:00:58]} 40. Kd2 {[%emt 0:00:33]} Kd5 {[%emt 0:00:12]} 41. Kd3 {[%emt 0:00:22]} Ke5 {[%emt 0:01:11]} 42. Kd2 {[%emt 0:00:13]} Kd6 {[%emt 0:00:13]} 43. Kc3 {[%emt 0:01:24]} Kc5 {[%emt 0:00:13]} 44. Kd2 {[%emt 0:00:10]} Kd5 {[%emt 0:06:24]} 1/2-1/2

[Event "VI Sunway Sitges Open 2019"]
[Site "Sitges"]
[Date "2019.12.14"]
[Round "2.21"]
[White "Wagner, Dennis"]
[Black "Nielsen, Rogvi Egilstoft"]
[Result "1-0"]
[ECO "A18"]
[WhiteElo "2578"]
[BlackElo "2387"]
[Annotator "ChessBase"]
[PlyCount "133"]
[EventDate "2019.12.13"]
[EventType "swiss"]
[EventCountry "ESP"]
[SourceTitle "playchess.com"]
[Source "ChessBase"]
[SourceQuality "1"]
[TimeControl "40/5400+30:1800+30"]

1. c4 {[%emt 0:00:00]} Nf6 {[%emt 0:04:45]} 2. Nc3 {[%emt 0:00:12]} e6 {[%emt 0:03:00]} 3. e4 {[%emt 0:00:33]} d6 {[%emt 0:07:07]} 4. d4 {[%emt 0:00:29]} Nbd7 {[%emt 0:00:32]} 5. Nf3 {[%emt 0:01:37]} c5 {[%emt 0:02:44]} 6. d5 {[%emt 0:01:17]} Be7 {[%emt 0:04:06]} 7. Be2 {[%emt 0:01:17]} O-O {[%emt 0:01:56]} 8. O-O {[%emt 0:00:08]} Ne8 {[%emt 0:03:18]} 9. Be3 {[%emt 0:03:12]} Bf6 {[%emt 0:02:18]} 10. Qd2 {[%emt 0:01:11]} Bxc3 {[%emt 0:09:18]} 11. Qxc3 {[%emt 0:00:20]} Qf6 {[%emt 0:00:31]} 12. Qd2 {[%emt 0:05:26]} h6 {[%emt 0:03:08]} 13. Rac1 {[%emt 0:19:01]} b6 {[%emt 0:02:33]} 14. h3 {[%emt 0:13:21]} Qe7 {[%emt 0:12:56]} 15. Bd3 {[%emt 0:08:30]} Rb8 {[%emt 0:08:17]} 16. a3 {[%emt 0:00:42]} a5 {[%emt 0:03:18]} 17. Rfe1 {[%emt 0:01:22]} e5 {[%emt 0:05:16]} 18. Nh2 {[%emt 0:00:05]} Nef6 {[%emt 0:02:36]} 19. Nf1 {[%emt 0:01:08]} Rd8 {[%emt 0:09:43]} 20. Ng3 {[%emt 0:00:25]} Nf8 {[%emt 0:00:09]} 21. Rc3 {[%emt 0:12:36]} Ne8 {[%emt 0:02:59]} 22. Bc2 {[%emt 0:07:30]} Bd7 {[%emt 0:00:38]} 23. a4 {[%emt 0:10:31]} Nf6 {[%emt 0:01:04]} 24. Kh1 {[%emt 0:02:10]} Kh8 {[%emt 0:03:58]} 25. f4 {[%emt 0:01:10]} exf4 {[%emt 0:02:09]} 26. Bxf4 {[%emt 0:00:02]} Ng6 {[%emt 0:00:14]} 27. e5 {[%emt 0:07:15]} Nxe5 {[%emt 0:00:07]} 28. Bxh6 {[%emt 0:00:20]} Ng8 {[%emt 0:02:23]} 29. Bf4 {[%emt 0:01:40]} f6 {[%emt 0:01:05]} 30. Ne4 {[%emt 0:00:24]} Re8 {[%emt 0:01:22]} 31. Qf2 {[%emt 0:00:19]} g5 {[%emt 0:00:43]} 32. Bg3 {[%emt 0:00:43]} Kg7 {[%emt 0:00:18]} 33. b3 {[%emt 0:00:24]} Nh6 {[%emt 0:00:11]} 34. Bh2 {[%emt 0:00:33]} Rh8 {[%emt 0:01:06]} 35. Kg1 {[%emt 0:00:36]} Nhf7 {[%emt 0:00:18]} 36. Ng3 {[%emt 0:00:35]} g4 {[%emt 0:00:57]} 37. Nf5+ {[%emt 0:00:12]} Bxf5 {[%emt 0:00:06]} 38. Qxf5 {[%emt 0:00:25]} Rbg8 {[%emt 0:00:51]} 39. Qxg4+ {[%emt 0:00:45]} Kf8 {[%emt 0:00:41]} 40. Qc8+ {[%emt 0:00:00]} Qd8 {[%emt 0:00:00]} 41. Qxd8+ {[%emt 0:07:25]} Nxd8 {[%emt 0:00:37]} 42. Rg3 {[%emt 0:03:38]} Ndf7 {[%emt 0:01:35]} 43. Rxg8+ {[%emt 0:00:11]} Rxg8 {[%emt 0:00:09]} 44. Kf2 {[%emt 0:00:11]} Rg5 {[%emt 0:02:43]} 45. Bf4 {[%emt 0:11:03]} Rh5 {[%emt 0:00:19]} 46. Re3 {[%emt 0:00:27]} Rh4 {[%emt 0:01:01]} 47. Kg3 {[%emt 0:00:20]} Rh5 {[%emt 0:00:28]} 48. Re1 {[%emt 0:03:27]} Kg7 {[%emt 0:01:22]} 49. Bd2 {[%emt 0:03:22]} Rh8 {[%emt 0:03:49]} 50. Bf5 {[%emt 0:00:26]} Rh5 {[%emt 0:00:28]} 51. Rf1 {[%emt 0:00:33]} Rh8 {[%emt 0:00:14]} 52. Bc3 {[%emt 0:02:17]} Re8 {[%emt 0:00:37]} 53. Kh2 {[%emt 0:00:47]} Rh8 {[%emt 0:00:26]} 54. g3 {[%emt 0:00:46]} Re8 {[%emt 0:02:12]} 55. Kg2 {[%emt 0:00:12]} Ng5 {[%emt 0:00:45]} 56. h4 {[%emt 0:00:22]} Ngf7 {[%emt 0:00:35]} 57. Be6 {[%emt 0:03:37]} Nd8 {[%emt 0:00:39]} 58. Bf5 {[%emt 0:00:10]} Ndf7 {[%emt 0:00:16]} 59. g4 {[%emt 0:00:57]} Nh6 {[%emt 0:02:59]} 60. g5 {[%emt 0:00:45]} fxg5 {[%emt 0:00:28]} 61. hxg5 {[%emt 0:00:01]} Nhf7 {[%emt 0:00:08]} 62. Bd2 {[%emt 0:00:14]} Rh8 {[%emt 0:00:44]} 63. Kg3 {[%emt 0:00:27]} Rh5 {[%emt 0:01:53]} 64. Bg4 {[%emt 0:00:01]} Rh8 {[%emt 0:01:46]} 65. Be6 {[%emt 0:00:38]} Rf8 {[%emt 0:03:27]} 66. Rf5 {[%emt 0:00:56]} Re8 {[%emt 0:02:45]} 67. Bc3 {[%emt 0:00:34]} 1-0